fUSD/lending_fUSD_20250828
["ID","MTS","AMOUNT","RATE_DAILY","PERIOD"]
[381789236,1756349432671,-400.0,0.00017748,2]
[381789237,1756349432680,-400.0,0.00017748,2]
[381789238,1756349432689,-400.0,0.00017748,2]
[381789239,1756349432698,-400.0,0.00017748,2]
[381789240,1756349432714,-400.0,0.00017748,2]
[381789241,1756349432723,-400.0,0.00017748,2]
[381789242,1756349432733,-400.0,0.00017748,2]
[381789243,1756349432742,-400.0,0.00017748,2]
[381789244,1756349432751,-400.0,0.00017748,2]
[381789245,1756349432760,-400.0,0.00017748,2]
[381789246,1756349432769,-400.0,0.00017748,2]
[381789247,1756349432778,-400.0,0.00017748,2]
[381789248,1756349432787,-400.0,0.00017748,2]
[381789249,1756349432796,-400.0,0.00017748,2]
[381789250,1756349432805,-401.03492829,0.00017748,2]
[381789251,1756349432814,-400.0,0.00017748,2]
[381789252,1756349432823,-400.0,0.00017748,2]
[381789253,1756349432831,-400.0,0.00017748,2]
[381789254,1756349432840,-400.0,0.00017748,2]
[381789255,1756349432850,-400.0,0.00017748,2]
[381789256,1756349432859,-266.9,0.00017748,2]
[381789257,1756349432868,-400.0,0.00017748,2]
[381789258,1756349432876,-400.0,0.00017748,2]
[381789259,1756349432886,-400.0,0.00017748,2]
[381789260,1756349432900,-400.0,0.00017748,2]
[381789261,1756349432911,-400.0,0.00017748,2]
[381789262,1756349432920,-400.0,0.00017748,2]
[381789263,1756349432929,-417.76553198,0.00017748,2]
[381789264,1756349432940,-432.3290223,0.00017748,2]
[381789265,1756349432949,-487.44880608,0.00017748,2]
[381789266,1756349432958,-401.87114723,0.00017748,2]
[381789267,1756349432969,-401.16676293,0.00017748,2]
[381789268,1756349432978,-402.07801295,0.00017748,2]
[381789269,1756349432987,-403.53588086,0.00017748,2]
[381789270,1756349432997,-400.0,0.00017748,2]
[381789271,1756349433006,-400.0,0.00017748,2]
[381789272,1756349433015,-400.0,0.00017748,2]
[381789273,1756349433025,-400.0,0.00017748,2]
[381789274,1756349433034,-401.68916876,0.00017748,2]
[381789275,1756349433043,-400.0,0.00017748,2]
[381789276,1756349433052,-401.68193582,0.00017748,2]
[381789277,1756349433062,-470.79,0.00017748,2]
[381789278,1756349433071,-401.98074743,0.00017748,2]
[381789279,1756349433080,-426.88580678,0.00017748,2]
[381789280,1756349433090,-402.29252096,0.00017748,2]
[381789281,1756349433099,-168.8266456,0.00017748,2]
[381789282,1756349433108,-400.0,0.00017748,2]
[381789283,1756349433118,-400.0,0.00017748,2]
[381789284,1756349433127,-402.37028152,0.00017748,2]
[381789285,1756349433136,-401.8641733,0.00017748,2]
[381789286,1756349433145,-401.2662749,0.00017748,2]
[381789287,1756349433154,-463.6,0.00017748,2]
[381789288,1756349433164,-515.75393792,0.00017748,2]
[381789289,1756349433174,-401.69237458,0.00017748,2]
[381789290,1756349433183,-400.0,0.00017748,2]
[381789291,1756349433192,-400.0,0.00017748,2]
[381789292,1756349433202,-300.0,0.00017748,2]
[381789293,1756349433211,-400.0,0.00017748,2]
[381789294,1756349433221,-400.0,0.00017748,2]
[381789295,1756349433231,-400.0,0.00017748,2]
[381789296,1756349433240,-400.0,0.00017748,2]
[381789297,1756349433249,-212.59985409,0.00017748,2]
[381789298,1756349433259,-408.13552459,0.00017748,2]
[381789299,1756349433268,-201.93395398,0.00017748,2]
[381789300,1756349433277,-719.0,0.00017748,2]
[381789301,1756349433286,-407.29409987,0.00017748,2]
[381789302,1756349433295,-400.0,0.00017748,2]
[381789303,1756349433304,-202.16447277,0.00017748,2]
[381789304,1756349433313,-150.0,0.00017748,2]
[381789305,1756349433322,-154.28110235,0.00017748,2]
[381789306,1756349433331,-500.0,0.00017748,2]
[381789307,1756349433341,-400.0,0.00017748,2]
[381789308,1756349433351,-400.0,0.00017748,2]
[381789309,1756349433360,-400.0,0.00017748,2]
[381789310,1756349433369,-400.0,0.00017748,2]
[381789311,1756349433379,-400.0,0.00017748,2]
[381789312,1756349433388,-400.0,0.00017748,2]
[381789313,1756349433399,-400.0,0.00017748,2]
[381789314,1756349433408,-400.0,0.00017748,2]
[381789315,1756349433417,-400.0,0.00017748,2]
[381789316,1756349433427,-400.0,0.00017748,2]
[381789317,1756349433437,-152.8800275,0.00017748,2]
[381789318,1756349433447,-152.83866774,0.00017748,2]
[381789319,1756349433456,-400.0,0.00017748,2]
[381789320,1756349433465,-400.0,0.00017748,2]
[381789321,1756349433474,-400.0,0.00017748,2]
[381789322,1756349433484,-400.0,0.00017748,2]
[381789323,1756349433493,-400.0,0.00017748,2]
[381789324,1756349433503,-400.0,0.00017748,2]
[381789325,1756349433512,-207.35110427,0.00017748,2]
[381789326,1756349433521,-400.0,0.00017748,2]
[381789327,1756349433530,-150.0,0.00017748,2]
[381789328,1756349433540,-400.0,0.00017748,2]
[381789329,1756349433550,-152.94124388,0.00017748,2]
[381789330,1756349433559,-209.41100614,0.00017748,2]
[381789331,1756349433569,-400.0,0.00017748,2]
[381789332,1756349433579,-400.0,0.00017748,2]
[381789333,1756349433589,-1008.24,0.00017748,2]
[381789334,1756349433599,-401.35066078,0.00017749,2]
[381789335,1756349433608,-400.0,0.00017749,2]
[381789336,1756349433618,-400.0,0.00017749,2]
[381789337,1756349433628,-410.97,0.00017749,2]
[381789338,1756349433637,-400.0,0.00017749,2]
[381789339,1756349433646,-400.0,0.00017749,2]
[381789340,1756349433656,-400.0,0.00017749,2]
[381789341,1756349433666,-400.0,0.00017749,2]
[381789342,1756349433675,-400.0,0.00017749,2]
[381789343,1756349433685,-400.0,0.00017749,2]
[381789344,1756349433695,-400.0,0.00017749,2]
[381789345,1756349433706,-400.0,0.00017749,2]
[381789346,1756349433715,-400.0,0.00017749,2]
[381789347,1756349433725,-417.85,0.00017749,2]
[381789348,1756349433736,-400.0,0.00017749,2]
[381789349,1756349433747,-116.73621708,0.00017749,2]
[381789350,1756349434049,-283.26378292,0.00017749,2]
[381789351,1756349434058,-400.0,0.00017749,2]
[381789352,1756349434068,-400.0,0.00017749,2]
[381789353,1756349434082,-400.0,0.00017749,2]
[381789354,1756349434091,-400.0,0.00017749,2]
[381789355,1756349434100,-500.0,0.00017749,2]
[381789356,1756349434110,-404.43235161,0.00017749,2]
[381789357,1756349434119,-400.0,0.00017749,2]
[381789358,1756349434128,-400.0,0.00017749,2]
[381789359,1756349434137,-400.0,0.00017749,2]
[381789360,1756349434146,-400.0,0.00017749,2]
[381789361,1756349434155,-400.0,0.00017749,2]
[381789362,1756349434164,-378.66416633,0.00017749,2]
[381789363,1756349434181,-24.04059878,0.00017749,2]
[381789364,1756349434191,-400.0,0.00017749,2]
[381789365,1756349434200,-400.0,0.00017749,2]
[381789366,1756349434209,-404.07568821,0.00017749,2]
[381789367,1756349434219,-400.0,0.00017749,2]
[381789368,1756349434228,-400.0,0.00017749,2]
[381789369,1756349434238,-400.0,0.00017749,2]
[381789370,1756349434247,-400.0,0.00017749,2]
[381789371,1756349434256,-400.0,0.00017749,2]
[381789372,1756349434266,-158.64371301,0.00017749,2]
[381789373,1756349434277,-243.1855436,0.00017749,2]
[381789374,1756349434287,-20.0774564,0.00017749,2]
[381789375,1756349434309,-379.9225436,0.00017749,2]
[381789376,1756349434318,-400.0,0.00017749,2]
[381789377,1756349434332,-400.0,0.00017749,2]
[381789378,1756349434342,-325.06974579,0.00017749,2]
[381789379,1756349434354,-74.93025421,0.00017749,2]
[381789380,1756349434363,-400.0,0.00017749,2]
[381789381,1756349434372,-400.0,0.00017749,2]
[381789382,1756349434381,-400.0,0.00017749,2]
[381789383,1756349434391,-400.0,0.00017749,2]
[381789384,1756349434400,-400.0,0.00017749,2]
[381789385,1756349434409,-248.93112214,0.00017749,2]
[381789386,1756349434424,-151.06887786,0.00017749,2]
[381789387,1756349434433,-411.8,0.00017749,2]
[381789388,1756349434442,-400.0,0.00017749,2]
[381789389,1756349434451,-58.05868919,0.00017749,2]
[381789390,1756349434463,-341.94131081,0.00017749,2]
[381789391,1756349434472,-400.0,0.00017749,2]
[381789392,1756349434482,-400.0,0.00017749,2]
[381789393,1756349434492,-400.0,0.00017749,2]
[381789394,1756349434503,-400.0,0.00017749,2]
[381789395,1756349434512,-400.0,0.00017749,2]
[381789396,1756349434522,-400.0,0.00017749,2]
[381789397,1756349434531,-410.39141594,0.00017749,2]
[381789398,1756349434541,-400.0,0.00017749,2]
[381789399,1756349434552,-400.0,0.00017749,2]
[381789400,1756349434563,-444.49,0.00017749,2]
[381789401,1756349434575,-400.0,0.00017749,2]
[381789402,1756349434589,-400.0,0.00017749,2]
[381789403,1756349434599,-400.0,0.00017749,2]
[381789404,1756349434609,-400.0,0.00017749,2]
[381789405,1756349434619,-400.0,0.00017749,2]
[381789406,1756349434629,-400.0,0.00017749,2]
[381789407,1756349434640,-400.0,0.00017749,2]
[381789408,1756349434656,-400.0,0.00017749,2]
[381789409,1756349434673,-400.0,0.00017749,2]
[381789410,1756349434686,-401.14906586,0.00017749,2]
[381789411,1756349434705,-400.0,0.00017749,2]
[381789412,1756349434716,-400.0,0.00017749,2]
[381789413,1756349434726,-400.0,0.00017749,2]
[381789414,1756349434736,-400.0,0.00017749,2]
[381789415,1756349434746,-400.0,0.00017749,2]
[381789416,1756349434757,-400.0,0.00017749,2]
[381789417,1756349434770,-400.0,0.00017749,2]
[381789418,1756349434783,-436.09776409,0.00017749,2]
[381789419,1756349434794,-400.0,0.00017749,2]
[381789420,1756349434804,-400.0,0.00017749,2]
[381789421,1756349434813,-400.0,0.00017749,2]
[381789422,1756349434823,-400.0,0.00017749,2]
[381789423,1756349434833,-400.0,0.00017749,2]
[381789424,1756349434841,-400.0,0.00017749,2]
[381789425,1756349434849,-400.0,0.00017749,2]
[381789426,1756349434857,-400.0,0.00017749,2]
[381789427,1756349434866,-400.0,0.00017749,2]
[381789428,1756349434876,-400.0,0.00017749,2]
[381789429,1756349434885,-400.0,0.00017749,2]
[381789430,1756349434901,-400.0,0.00017749,2]
[381789431,1756349434911,-400.0,0.00017749,2]
[381789432,1756349434920,-400.0,0.00017749,2]
[381789433,1756349434929,-401.77860663,0.00017749,2]
[381789434,1756349434940,-509.99,0.00017749,2]
[381789435,1756349434951,-464.67147716,0.00017749,2]
[381789436,1756349434961,-400.0,0.00017749,2]
[381789437,1756349434974,-400.0,0.00017749,2]
[381789438,1756349434984,-400.0,0.00017749,2]
[381789439,1756349434995,-400.0,0.00017749,2]
[381789440,1756349435007,-400.0,0.00017749,2]
[381789441,1756349435018,-401.92613808,0.00017749,2]
[381789442,1756349435029,-400.0,0.00017749,2]
[381789443,1756349435039,-400.0,0.00017749,2]
[381789444,1756349435049,-400.0,0.00017749,2]
[381789445,1756349435059,-400.0,0.00017749,2]
[381789446,1756349435069,-400.0,0.00017749,2]
[381789447,1756349435081,-400.0,0.00017749,2]
[381789448,1756349435090,-400.0,0.00017749,2]
[381789449,1756349435100,-401.94388829,0.00017749,2]
[381789450,1756349435109,-435.91242986,0.00017749,2]
[381789451,1756349435119,-400.0,0.00017749,2]
[381789452,1756349435129,-400.0,0.00017749,2]
[381789453,1756349435139,-400.0,0.00017749,2]
[381789454,1756349435149,-400.0,0.00017749,2]
[381789455,1756349435159,-400.0,0.00017749,2]
[381789456,1756349435168,-400.0,0.00017749,2]
[381789457,1756349435178,-400.0,0.00017749,2]
[381789458,1756349435187,-401.26313642,0.00017749,2]
[381789459,1756349435196,-400.0,0.00017749,2]
[381789460,1756349435206,-400.0,0.00017749,2]
[381789461,1756349435215,-400.0,0.00017749,2]
[381789462,1756349435224,-400.0,0.00017749,2]
[381789463,1756349435234,-401.22962986,0.00017749,2]
[381789464,1756349435243,-505.97600811,0.00017749,2]
[381789465,1756349435253,-500.0,0.00017749,2]
[381789466,1756349435262,-400.0,0.00017749,2]
[381789467,1756349435272,-400.0,0.00017749,2]
[381789468,1756349435281,-527.17136199,0.00017749,2]
[381789469,1756349435291,-400.0,0.00017749,2]
[381789470,1756349435300,-400.0,0.00017749,2]
[381789471,1756349435309,-400.0,0.00017749,2]
[381789472,1756349435318,-400.0,0.00017749,2]
[381789473,1756349435328,-400.0,0.00017749,2]
[381789474,1756349435338,-401.58381894,0.00017749,2]
[381789475,1756349435347,-402.69488292,0.00017749,2]
[381789476,1756349435356,-400.0,0.00017749,2]
[381789477,1756349435364,-401.91249859,0.00017749,2]
[381789478,1756349435376,-402.38896544,0.00017749,2]
[381789479,1756349435387,-400.0,0.00017749,2]
[381789480,1756349435397,-400.0,0.00017749,2]
[381789481,1756349435406,-400.0,0.00017749,2]
[381789482,1756349435415,-400.0,0.00017749,2]
[381789483,1756349435425,-400.0,0.00017749,2]
[381789484,1756349435434,-400.0,0.00017749,2]
[381789485,1756349435443,-402.10293272,0.00017749,2]
[381789486,1756349435453,-404.49573586,0.00017749,2]
[381789487,1756349435463,-400.0,0.00017749,2]
[381789488,1756349435472,-401.39008002,0.00017749,2]
[381789489,1756349435482,-400.0,0.00017749,2]
[381789490,1756349435491,-401.26065715,0.00017749,2]
[381789491,1756349435501,-400.0,0.00017749,2]
[381789492,1756349435510,-401.99269925,0.00017749,2]
[381789493,1756349435519,-400.86038862,0.00017749,2]
[381789494,1756349435529,-402.13123861,0.00017749,2]
[381789495,1756349435539,-400.0,0.00017749,2]
[381789496,1756349435548,-402.18936736,0.00017749,2]
[381789497,1756349435558,-400.0,0.00017749,2]
[381789498,1756349435567,-401.99894424,0.00017749,2]
[381789499,1756349435577,-400.0,0.00017749,2]
[381789500,1756349435586,-400.0,0.00017749,2]
[381789501,1756349435596,-400.0,0.00017749,2]
[381789502,1756349435605,-400.84411642,0.00017749,2]
[381789503,1756349435616,-238.39483324,0.00017749,2]
[381789504,1756349435625,-401.315707,0.00017749,2]
[381789505,1756349435635,-400.0,0.00017749,2]
[381789506,1756349435645,-400.0,0.00017749,2]
[381789507,1756349435654,-400.0,0.00017749,2]
[381789508,1756349435663,-401.99074554,0.00017749,2]
[381789509,1756349435672,-400.0,0.00017749,2]
[381789510,1756349435681,-400.0,0.00017749,2]
[381789511,1756349435690,-400.0,0.00017749,2]
[381789512,1756349435700,-400.0,0.00017749,2]
[381789513,1756349435709,-400.0,0.00017749,2]
[381789514,1756349435718,-400.0,0.00017749,2]
[381789515,1756349435727,-400.0,0.00017749,2]
[381789516,1756349435736,-400.0,0.00017749,2]
[381789517,1756349435746,-400.0,0.00017749,2]
[381789518,1756349435755,-400.0,0.00017749,2]
[381789519,1756349435765,-402.02553413,0.00017749,2]
[381789520,1756349435774,-400.0,0.00017749,2]
[381789521,1756349435783,-400.0,0.00017749,2]
[381789522,1756349435793,-400.0,0.00017749,2]
[381789523,1756349435802,-400.0,0.00017749,2]
[381789524,1756349435811,-400.0,0.00017749,2]
[381789525,1756349435820,-400.0,0.00017749,2]
[381789526,1756349435831,-400.0,0.00017749,2]
[381789527,1756349435840,-400.0,0.00017749,2]
[381789528,1756349435850,-152.44,0.00017749,2]
[381789529,1756349435859,-397.79601945,0.00017749,2]
[381789530,1756349435872,-400.0,0.00017749,2]
[381789531,1756349435886,-400.0,0.00017749,2]
[381789532,1756349435904,-400.0,0.00017749,2]
[381789533,1756349435914,-400.0,0.00017749,2]
[381789534,1756349435923,-400.0,0.00017749,2]
[381789535,1756349435933,-400.0,0.00017749,2]
[381789536,1756349435942,-400.0,0.00017749,2]
[381789537,1756349435951,-400.0,0.00017749,2]
[381789538,1756349435961,-400.0,0.00017749,2]
[381789539,1756349435971,-400.0,0.00017749,2]
[381789540,1756349435980,-400.0,0.00017749,2]
[381789541,1756349435989,-400.0,0.00017749,2]
[381789542,1756349435998,-400.0,0.00017749,2]
[381789543,1756349436008,-497.3,0.00017749,2]
[381789544,1756349436018,-400.0,0.00017749,2]
[381789545,1756349436027,-400.0,0.00017749,2]
[381789546,1756349436036,-400.0,0.00017749,2]
[381789547,1756349436045,-400.0,0.00017749,2]
[381789548,1756349436054,-401.2431377,0.00017749,2]
[381789549,1756349436064,-400.0,0.00017749,2]
[381789550,1756349436076,-400.0,0.00017749,2]
[381789551,1756349436085,-401.03705686,0.00017749,2]
[381789552,1756349436094,-400.0,0.00017749,2]
[381789553,1756349436103,-400.0,0.00017749,2]
[381789554,1756349436113,-401.97474061,0.00017749,2]
[381789555,1756349436122,-400.84415035,0.00017749,2]
[381789556,1756349436132,-400.0,0.00017749,2]
[381789557,1756349436142,-431.51,0.00017749,2]
[381789558,1756349436151,-400.0,0.00017749,2]
[381789559,1756349436160,-400.0,0.00017749,2]
[381789560,1756349436169,-400.0,0.00017749,2]
[381789561,1756349436178,-400.0,0.00017749,2]
[381789562,1756349436187,-400.0,0.00017749,2]
[381789563,1756349436197,-400.0,0.00017749,2]
[381789564,1756349436207,-400.0,0.00017749,2]
[381789565,1756349436216,-525.79420465,0.00017749,2]
[381789566,1756349436225,-400.0,0.00017749,2]
[381789567,1756349436234,-1682.58,0.00017749,2]
[381789568,1756349436244,-400.0,0.00017749,2]
[381789569,1756349436263,-400.0,0.00017749,2]
[381789570,1756349436274,-722.23,0.00017749,2]
[381789571,1756349436284,-400.0,0.00017749,2]
[381789572,1756349436294,-400.0,0.00017749,2]
[381789573,1756349436303,-400.0,0.00017749,2]
[381789574,1756349436313,-400.0,0.00017749,2]
[381789575,1756349436322,-400.0,0.00017749,2]
[381789576,1756349436333,-400.0,0.00017749,2]
[381789577,1756349436342,-400.0,0.00017749,2]
[381789578,1756349436351,-400.0,0.00017749,2]
[381789579,1756349436361,-400.0,0.00017749,2]
[381789580,1756349436370,-400.0,0.00017749,2]
[381789581,1756349436379,-400.0,0.00017749,2]
[381789582,1756349436388,-400.0,0.00017749,2]
[381789583,1756349436398,-400.0,0.00017749,2]
[381789584,1756349436407,-400.0,0.00017749,2]
[381789585,1756349436417,-400.0,0.00017749,2]
[381789586,1756349436426,-388.0,0.00017749,2]
[381789587,1756349436435,-400.0,0.00017749,2]
[381789588,1756349436444,-400.0,0.0001775,2]
[381789589,1756349436454,-400.0,0.0001775,2]
[381789590,1756349436463,-400.0,0.0001775,2]
[381789591,1756349436715,-400.0,0.0001775,2]
[381789592,1756349436725,-400.0,0.0001775,2]
[381789593,1756349436734,-551.92,0.0001775,2]
[381789594,1756349436743,-457.12,0.0001775,2]
[381789595,1756349436752,-400.0,0.0001775,2]
[381789596,1756349436761,-974.4,0.0001775,2]
[381789597,1756349436771,-4730.03,0.0001775,2]
[381789598,1756349436780,-2330.29,0.0001775,2]
[381789599,1756349436789,-400.0,0.0001775,2]
[381789600,1756349436799,-400.0,0.0001775,2]
[381789601,1756349436808,-400.0,0.0001775,2]
[381789602,1756349436817,-400.0,0.0001775,2]
[381789603,1756349436826,-400.0,0.0001775,2]
[381789604,1756349436835,-400.0,0.0001775,2]
[381789605,1756349436844,-400.0,0.0001775,2]
[381789606,1756349436853,-170.78,0.0001775,2]
[381789607,1756349436862,-400.0,0.0001775,2]
[381789608,1756349436872,-400.0,0.0001775,2]
[381789609,1756349436881,-400.0,0.0001775,2]
[381789610,1756349436892,-400.0,0.0001775,2]
[381789611,1756349436901,-400.0,0.0001775,2]
[381789612,1756349436911,-400.0,0.0001775,2]
[381789613,1756349436920,-400.0,0.0001775,2]
[381789614,1756349436929,-1619.11,0.0001775,2]
[381789615,1756349436942,-429.57237684,0.0001775,2]
[381789616,1756349436952,-400.0,0.0001775,2]
[381789617,1756349436963,-400.0,0.0001775,2]
[381789618,1756349436974,-400.0,0.0001775,2]
[381789619,1756349436984,-400.0,0.0001775,2]
[381789620,1756349436993,-400.0,0.0001775,2]
[381789621,1756349437004,-400.0,0.0001775,2]
[381789622,1756349437014,-400.0,0.0001775,2]
[381789623,1756349437023,-400.0,0.0001775,2]
[381789624,1756349437032,-400.0,0.0001775,2]
[381789625,1756349437041,-501.77875406,0.00017773,2]
[381789626,1756349437051,-500.28185503,0.00017773,2]
[381789627,1756349437060,-500.6764872,0.00017773,2]
[381789628,1756349437069,-501.98033122,0.00017773,2]
[381789629,1756349437078,-500.66560934,0.00017773,2]
[381789630,1756349437087,-881.46536882,0.00017792,2]
[381789631,1756349437097,-400.0,0.00017799,2]
[381789632,1756349437106,-400.0,0.00017799,2]
[381789633,1756349437115,-400.0,0.00017799,2]
[381789634,1756349437124,-400.0,0.00017799,2]
[381789635,1756349437133,-387.32,0.00017799,2]
[381789636,1756349437142,-5800.0,0.000178,6]
[381789637,1756349437151,-400.0,0.00017809,2]
[381789638,1756349437160,-400.0,0.00017809,2]
[381789639,1756349437170,-400.0,0.00017809,2]
[381789640,1756349437179,-400.0,0.00017809,2]
[381789641,1756349437190,-420.97,0.00017809,2]
[381789642,1756349437199,-400.0,0.00017809,2]
[381789643,1756349437210,-400.0,0.00017809,2]
[381789644,1756349437220,-400.0,0.00017809,2]
[381789645,1756349437230,-400.0,0.00017809,2]
[381789646,1756349437241,-400.0,0.00017809,2]
[381789647,1756349437250,-324.13,0.00017809,2]
[381789648,1756349437260,-400.0,0.00017809,2]
[381789649,1756349437271,-400.0,0.00017809,2]
[381789650,1756349437281,-400.0,0.00017809,2]
[381789651,1756349437290,-500.0,0.00017809,2]
[381789652,1756349437299,-400.0,0.00017809,2]
[381789653,1756349437308,-203.57,0.00017809,2]
[381789654,1756349437318,-400.0,0.00017809,2]
[381789655,1756349437328,-400.0,0.00017809,2]
[381789656,1756349437337,-400.0,0.00017809,2]
[381789657,1756349437347,-191.95520478,0.00017809,2]
[381789658,1756349437356,-400.0,0.00017809,2]
[381789659,1756349437366,-400.0,0.00017809,2]
[381789660,1756349437375,-400.0,0.00017809,2]
[381789661,1756349437384,-400.0,0.00017809,2]
[381789662,1756349437395,-400.0,0.00017809,2]
[381789663,1756349437405,-400.0,0.00017809,2]
[381789664,1756349437417,-150.724341,0.00017809,2]
[381789665,1756349437429,-400.0,0.00017809,2]
[381789666,1756349437440,-400.0,0.00017809,2]
[381789667,1756349437450,-233.4,0.00017809,2]
[381789668,1756349437460,-400.0,0.00017809,2]
[381789669,1756349437470,-400.0,0.00017809,2]
[381789670,1756349437481,-400.0,0.00017809,2]
[381789671,1756349437491,-400.0,0.00017809,2]
[381789672,1756349437501,-193.84403,0.00017809,2]
[381789673,1756349437511,-400.0,0.00017809,2]
[381789674,1756349437520,-322.229175,0.00017809,2]
[381789675,1756349437530,-400.0,0.00017809,2]
[381789676,1756349437540,-400.0,0.00017809,2]
[381789677,1756349437550,-400.0,0.00017809,2]
[381789678,1756349437559,-400.0,0.00017809,2]
[381789679,1756349437569,-400.0,0.00017809,2]
[381789680,1756349437578,-400.0,0.00017809,2]
[381789681,1756349437588,-400.0,0.00017809,2]
[381789682,1756349437597,-400.0,0.00017809,2]
[381789683,1756349437606,-400.0,0.00017809,2]
[381789684,1756349437615,-400.0,0.00017809,2]
[381789685,1756349437625,-411.24830007,0.00017809,2]
[381789686,1756349437634,-400.0,0.00017809,2]
[381789687,1756349437643,-400.0,0.00017809,2]
[381789688,1756349437653,-400.0,0.00017809,2]
[381789689,1756349437664,-500.0,0.00017809,2]
[381789690,1756349437673,-400.0,0.00017809,2]
[381789691,1756349437683,-400.0,0.00017809,2]
[381789693,1756349437692,-400.0,0.00017809,2]
[381789695,1756349437702,-400.0,0.00017809,2]
[381789697,1756349437711,-400.0,0.00017809,2]
[381789698,1756349437721,-400.0,0.00017809,2]
[381789699,1756349437730,-400.0,0.00017809,2]
[381789700,1756349437739,-400.0,0.00017809,2]
[381789701,1756349437748,-182.36847511,0.00017809,2]
[381789702,1756349437758,-400.0,0.00017809,2]
[381789703,1756349437768,-400.0,0.00017809,2]
[381789704,1756349437779,-400.0,0.00017809,2]
[381789705,1756349437789,-400.0,0.00017809,2]
[381789706,1756349437799,-400.0,0.00017809,2]
[381789707,1756349437808,-400.0,0.00017809,2]
[381789708,1756349437818,-276.68995376,0.00017809,2]
[381789709,1756349437907,461.162784,0.00016225,2]
[381789713,1756349438357,-285.69518782,0.00016529,2]
[381789715,1756349438367,-400.0,0.00017749,2]
[381789717,1756349438376,-400.0,0.00017799,2]
[381789719,1756349438385,-123.31004624,0.00017809,2]
[381789721,1756349438395,-222.5,0.00017809,2]
[381789723,1756349438404,-400.0,0.00017809,2]
[381789725,1756349438413,-400.0,0.00017809,2]
[381789727,1756349438422,-454.67,0.00017809,2]
[381789729,1756349438431,-400.0,0.00017809,2]
[381789731,1756349438440,-262.42476604,0.00017809,2]
[381789741,1756349438525,-145.55675463,0.00017809,2]
[381789744,1756349438535,-249.67597625,0.00017809,2]
[381789746,1756349438547,-275.66139642,0.00017809,2]
[381789748,1756349438556,-68.26902135,0.00017809,2]
[381789750,1756349438566,-331.73097865,0.00017809,2]
[381789752,1756349438575,-234.41003479,0.00017809,2]
[381789756,1756349438606,-165.58996521,0.00017809,2]
[381789758,1756349438615,-162.2603026,0.00017809,2]
[381789761,1756349438632,-245.27013976,0.00017809,2]
[381789763,1756349438641,-30.0862073,0.00017809,2]
[381789765,1756349438651,-188.4537927,0.00017809,2]
[381789767,1756349438660,-400.0,0.00017809,2]
[381789769,1756349438669,-400.0,0.00017809,2]
[381789771,1756349438678,-400.0,0.00017809,2]
[381789773,1756349438687,-400.0,0.00017809,2]
[381789775,1756349438697,-400.0,0.00017809,2]
[381789777,1756349438706,-400.0,0.00017809,2]
[381789779,1756349438715,-251.44445484,0.00017809,2]
[381789910,1756349439943,-148.55554516,0.00017809,2]